Cogmind - Beta 16 @@@ ROGUE MODE // 2025.12.25 @ 23:17:04 Player: tritri Result: Destroyed self with Rocket Launcher Performance ------------- Evolutions (0) 0 Regions Visited (2) 400 Robots Destroyed (16) 80 Value Destroyed (351) 351 Prototype IDs (0) 0 Alien Tech Used (0) 0 Bonus (0) 0 TOTAL SCORE: 831 Bonus ------- None Cogmind --------- Core Integrity 0/250 Matter 288/300 Energy 92/100 System Corruption 0% Temperature Cool (0) Movement Core (100) Ox1 Location -10/Mines Parts ------- > --- POWER (1) -------- (None) > --- PROPULSION (2) --- (None) > --- UTILITY (2) ------ Heat Sink Targeting Computer > --- WEAPON (2) ------- Rocket Launcher > --- INVENTORY (5) ---- Terrain Scanner Light Assault Rifle Grenade Launcher Peak State ------------ > --- POWER ------------ (None) > --- PROPULSION ------- Aluminum Leg Aluminum Leg > --- UTILITY ---------- Heat Sink Targeting Computer > --- WEAPON ----------- Small Laser Rocket Launcher > --- INVENTORY -------- Terrain Scanner Light Assault Rifle Grenade Launcher [Rating: 7] Favorites ----------- Power Light Ion Engine Engine Light Ion Engine Propulsion Aluminum Leg Leg Aluminum Leg Utility Targeting Computer Device Heat Sink Processor Targeting Computer Weapon Small Laser Energy Gun Small Laser Ballistic Gun Light Assault Rifle Launcher Grenade Launcher Build | -11 -10 -10 ------- Run | Yrd Mat Min Slots Evolved . | . . . Power . | . . . Propulsion . | . . . Utility . | . . . Weapon . | . . . Parts Attached 9 | 5 3 1 Power 1 | 1 . . Engine 1 | 1 . . Core . | . . . Reactor . | . . . Propulsion 2 | 2 . . Treads . | . . . Leg 2 | 2 . . Wheel . | . . . Hover . | . . . Flight . | . . . Utility 2 | . 2 . Device 1 | . 1 . Storage . | . . . Processor 1 | . 1 . Hackware . | . . . Protection . | . . . Artifact . | . . . Weapon 4 | 2 1 1 Energy Gun 1 | 1 . . Energy Cannon . | . . . Ballistic Gun 1 | 1 . . Ballistic Cannon . | . . . Launcher 2 | . 1 1 Special Weapon . | . . . Impact Weapon . | . . . Slashing Weapon . | . . . Piercing Weapon . | . . . Special Melee Weapon . | . . . Unidentified Prototypes . | . . . Parts Lost 4 | . 1 3 Power 1 | . 1 . Propulsion 2 | . . 2 Utility . | . . . Weapon 1 | . . 1 Highest Loss Streak 3 | . 1 3 To Critical Strikes . | . . . Average Backups 1 | . 1 2 Power . | . . . Propulsion . | . . . Utility . | . . 1 Weapon . | . . 1 Tool/Special . | . . . Unused Backups 1 | . . 1 Power . | . . . Propulsion . | . . . Utility 1 | . . 1 Weapon . | . . . Tool/Special . | . . . Average Slot Usage (%) 78 | . 76 82 Engine 1 | . 2 . Leg 27 | . 28 26 Device 9 | . 7 14 Processor 11 | . 9 14 Energy Gun 14 | . 14 14 Ballistic Gun 2 | . 3 . Launcher 11 | . 10 13 Peak Build Rating 7 | 5 6 7 Average Rating 5 | 4 5 6 On Entrance 3 | . 5 6 Avg Prop Armor Cover (%) . | . . . Naked Turns . | . . . Heaviest Build 6 | 5 5 6 Greatest Support 20 | 20 20 20 Greatest Overweight (x) 1 | . . 1 Average Overweight (x) . | . . . Largest Inventory Capacity 5 | 5 5 5 Average Capacity 5 | 5 5 5 Most Carried 4 | 2 2 4 Average Carried 1 | . 1 2 Final Capacity 5 | 5 5 5 Final Carried 3 | . 2 3 Class Distribution -------------------- 100% | Mutant Dominant Class ---------------- Mutant | -10/Materials Mutant | -10/Mines Resources | -11 -10 -10 ----------- Run | Yrd Mat Min Matter Collected 362 | 255 82 25 Remotely . | . . . Salvage Created 371 | 63 306 2 Parts 31 | 3 26 2 Haulers Intercepted 1 | . 1 . Recyclers Shooed . | . . . Parts Field Recycled . | . . . Retrieved Matter . | . . . Parts Self-Destructed . | . . . Prevented . | . . . Parts Restored . | . . . Kills | -11 -10 -10 ------- Run | Yrd Mat Min Combat Hostiles Destroyed 11 | 1 7 3 Guns 7 | 1 6 . AOE 4 | . 1 3 Classes Destroyed 5 | 2 2 1 Builder 2 | . 2 . Tunneler 2 | 1 1 . Hauler 1 | . 1 . Swarmer 3 | . . 3 Grunt 8 | 1 7 . Best Kill Streak 6 | 2 6 3 Combat Bots Only 3 | 1 3 3 Max Kills in Single Turn 3 | 1 3 2 Gunslinging . | . . . Exploded 2 | . 1 2 Melee . | . . . Uniques/NPCs Destroyed . | . . . Combat | -11 -10 -10 -------- Run | Yrd Mat Min Hostile Shots Fired 45 | 6 28 11 Missed 14 | 1 8 5 Hits 31 | 5 20 6 Projectile 31 | 5 20 6 AOE 5 | . . 5 Critical Strikes 1 | . 1 . Damage Taken 610 | 52 235 323 Core 250 | 10 55 185 Absorbed by Shields . | . . . Core Remaining (%) 96 | 96 . . Volleys Fired 31 | 5 22 4 Largest 2 | 2 2 2 Hottest 73 | 60 70 73 Shots Fired 52 | 10 34 8 Gun 43 | 10 29 4 Cannon . | . . . Launcher 9 | . 5 4 Special . | . . . Kinetic 12 | 5 7 . Thermal 31 | 5 22 4 Explosive 9 | . 5 4 Electromagnetic . | . . . Robot Hit Streak 7 | 3 7 1 Robot Miss Streak 3 | 1 3 1 Penetration Max . | . . . Secondary Targets 1 | . 1 . Max Gunslinging Chain 1 | . 1 . Shots Hit Robots 36 | 8 24 4 Core Hits 34 | 3 25 6 Critical Kills . | . . . Critical Parts Destroyed . | . . . Critical Strikes . | . . . Melee Attacks . | . . . Impact . | . . . Slashing . | . . . Piercing . | . . . Sneak Attacks . | . . . Combat Hostiles . | . . . Follow-up Attacks . | . . . Damage Inflicted 852 | 93 480 279 Guns 326 | 93 223 10 Cannons . | . . . Explosions 521 | . 257 264 Melee . | . . . Ramming 5 | . . 5 Kinetic 99 | 49 50 . Thermal 227 | 44 173 10 Explosive 521 | . 257 264 Electromagnetic . | . . . Impact . | . . . Slashing . | . . . Piercing . | . . . Highest Corruption . | . . . Average Corruption . | . . . Corruption Purged . | . . . Corruption Blocked . | . . . Overload Shots . | . . . Overflow Damage 31 | . . 31 Projectiles . | . . . Explosions 31 | . . 31 Melee . | . . . Knockbacks . | . . . Impact . | . . . Kinetic . | . . . Secondary . | . . . Self-Inflicted Damage 90 | . . 90 Shots 2 | . . 2 Rammed . | . . . Targets Rammed 2 | . . 2 Kicked 2 | . . 2 Crushed . | . . . Highest Temperature 64 | 64 58 . Average Temperature 26 | 27 25 . Received Heat Transfer 180 | 30 150 . Siege Activations . | . . . Martial Activations . | . . . Shielding Activations . | . . . Robots Disrupted . | . . . Combat Hostiles . | . . . Robots Corrupted . | . . . Combat Hostiles . | . . . Parts Fried . | . . . Impact Corruptions . | . . . Robots Melted . | . . . Combat Hostiles . | . . . Parts Melted . | . . . Heat Transferred 525 | 100 400 25 Parts Sabotaged . | . . . Parts Stolen . | . . . Parts Stripped . | . . . Power Chain Reactions . | . . . Alert | -11 -10 -10 ------- Run | Yrd Mat Min Maximum Alert Level . | . . . Low Security (%) 100 | 100 100 100 Level 1 . | . . . Level 2 . | . . . Level 3 . | . . . Level 4 . | . . . Level 5 . | . . . High Security . | . . . Max Security . | . . . Peak Influence 112 | 25 112 106 Initial 31 | . 3 31 Average 44 | 5 51 62 Influence Increases 345 | 25 232 88 Destroy 0b10 Robot/C 220 | 20 140 60 Destroy 0b10 Robot/NC 25 | 5 20 . Destroy Leader 42 | . 32 10 Disable Machine 15 | . 15 . Destroy Structure 43 | . 25 18 Influence Decreases 336 | 20 155 161 Entered New Map 53 | . 2 51 Time Decay 243 | 20 143 80 Lost Part 40 | . 10 30 Squads Dispatched 2 | . 2 . Investigation 1 | . 1 . Extermination . | . . . Reinforcement 1 | . 1 . Assault . | . . . Garrison . | . . . Intercept . | . . . Searches Triggered . | . . . Construction Impeded . | . . . Haulers Reinforced . | . . . Active Scanning Responses . | . . . Cargo Convoy Interrupts . | . . . Stealth | -11 -10 -10 --------- Run | Yrd Mat Min Distress Signals 1 | . . 1 Communications Jammed . | . . . Distress Signals . | . . . Times Spotted 21 | 1 9 11 Peak Tracking Total 11 | 1 3 11 Tactical Retreats . | . . . Traps | -11 -10 -10 ------- Run | Yrd Mat Min Traps Triggered 1 | . 1 . Indirectly . | . . . Trap Hack Attempts . | . . . Triggered . | . . . Disarmed . | . . . Reprogrammed . | . . . Reused . | . . . Traps Extracted . | . . . Installed . | . . . Triggered . | . . . Machines | -11 -10 -10 ---------- Run | Yrd Mat Min Machines Disabled 1 | . 1 . Max in Single Turn 1 | . 1 . Machines Repaired . | . . . Machines Dismantled . | . . . Machines Sabotaged . | . . . Overloaded Fab Kills . | . . . Hacking | -11 -10 -10 --------- Run | Yrd Mat Min Machines Accessed 1 | . 1 . Terminals 1 | . 1 . Fabricators . | . . . Repair Stations . | . . . Recycling Units . | . . . Scanalyzers . | . . . Garrison Access . | . . . Total Hacks 1 | . 1 . Successful 1 | . 1 . Failed . | . . . Catastrophic . | . . . Database Lockouts . | . . . Manual 1 | . 1 . Terminals 1 | . 1 . Fabricators . | . . . Repair Stations . | . . . Recycling Units . | . . . Scanalyzers . | . . . Garrison Access . | . . . Terminal Hacks 1 | . 1 . Alert Level 1 | . 1 . Fabricator Hacks . | . . . Repair Station Hacks . | . . . Recycling Unit Hacks . | . . . Scanalyzer . | . . . Garrison Access Hacks . | . . . Unauthorized Hacks . | . . . Terminals . | . . . Fabricators . | . . . Repair Stations . | . . . Recycling Units . | . . . Scanalyzers . | . . . Garrison Access . | . . . Data Cores Recovered . | . . . Used . | . . . Hacking Detections 1 | . 1 . Full Trace Events . | . . . Feedback Events . | . . . Feedback Blocked . | . . . Robot Schematics Acquired . | . . . Robots Built . | . . . Authchips . | . . . Time . | . . . Total Robot Build Rating . | . . . Part Schematics Acquired . | . . . Parts Built . | . . . Authchips . | . . . Time . | . . . Total Part Build Rating . | . . . Part Studies Acquired . | . . . Parts Repaired . | . . . Time . | . . . Parts Recycled . | . . . Recycled Matter . | . . . Retrieved Matter . | . . . Retrieved Components . | . . . Parts Scanalyzed . | . . . Part Schematics Acquired . | . . . Parts Damaged . | . . . Bothacking | -11 -10 -10 ------------ Run | Yrd Mat Min Used RIF Installer . | . . . Robots Hacked . | . . . Non-combat . | . . . Combat . | . . . Robot Hacks Applied . | . . . Relay Couplers Released . | . . . Fabnet Peak Effective % . | . . . Robots Rewired . | . . . Allies Hacked . | . . . Hacks Repelled . | . . . Allies | -11 -10 -10 -------- Run | Yrd Mat Min Total Allies . | . . . Largest Group . | . . . Highest-Rated Group . | . . . Highest-Rated Ally . | . . . Total Orders . | . . . Ally Attacks . | . . . Total Damage . | . . . Kills . | . . . Allies Corrupted . | . . . Allies Melted . | . . . Intel | -11 -10 -10 ------- Run | Yrd Mat Min Active Infowar (turns) . | . . . Robot Analysis Total . | . . . Derelict Logs Recovered . | . . . Drone Launches . | . . . Drone Recoveries . | . . . Exploration | -11 -10 -10 ------------- Run | Yrd Mat Min Turns Passed 659 | 139 345 175 Spaces Moved 459 | 96 229 134 Core 25 | 22 . 3 Treads . | . . . Legs 434 | 74 229 131 Wheels . | . . . Hover . | . . . Flight . | . . . Fastest Speed 50 | 50 120 100 Average Speed 116 | 103 120 119 Slowest Speed 120 | 120 120 120 Overloaded Moves . | . . . Propulsion Burnouts . | . . . Robots Hopped . | . . . Potential Cave-ins . | . . . Cave-ins Triggered . | . . . Exploration Rate (%) 25 | 7 39 29 Regions Visited 2 Branch Regions 1 Pre-discovered Areas . | . . . Known Exits Taken . | . . . Unknown Exits Taken 2 | 1 1 . Scrap Searched . | . . . Spaces Dug . | . . . Terrain Destroyed 55 | . 22 33 Melee . | . . . Projectile . | . . . AOE 55 | . 22 33 Terrain Rammed . | . . . Walls Destroyed . | . . . Machines Disabled . | . . . Actions | -11 -10 -10 --------- Run | Yrd Mat Min Total 535 | 126 266 143 Wait 25 | 16 9 . Move 457 | 95 228 134 Hop . | . . . Pick Up 10 | 5 4 1 Fast Attach . | . . . Attach 8 | 5 2 1 Detach 1 | . . 1 Swap 1 | . 1 . Drop . | . . . Fire 31 | 5 22 4 Melee . | . . . Ram . | . . . Kick 2 | . . 2 Crush . | . . . Escape Stasis . | . . . Rewire . | . . . Trap . | . . . Miscellaneous . | . . . Route ------- -11/Scrapyard -10/Materials (discovered 2 exits: [*Min] / [*Sub]) -10/Mines History --------- Turn | Location | Event 2 | -11/Scrapyard | Met Revision 17 69 | -11/Scrapyard | Discovered new exit (range 8) 140 | -11/Scrapyard | Entered Materials 273 | -10/Materials | Discovered new exit (range 16) 321 | -10/Materials | Build established: Mutant 443 | -10/Materials | Discovered new exit (range 9) 485 | -10/Materials | Entered Mines 492 | -10/Mines | Received a Rocket Launcher from a helpful Derelict 599 | -10/Mines | Assembled infested the area 604 | -10/Mines | Assisted by a Guerilla fighting off Assembled 655 | -10/Mines | Core integrity fell below 50% 660 | -10/Mines | Core integrity fell below 20% 660 | -10/Mines | Destroyed self with Rocket Launcher Last Messages --------------- 00643_ ZR-TU1(h): "I'll hold them off! Go on ahead or try to find another way!" 00648_ Kicked U-05 Engineer. 00649_ U-05 Engineer sends out distress signal. 00649_ U-05 Engineer destroyed. 00650_ ZR-TU1(h) destroyed. 00650_ Acquired 25 matter. 00653_ Aluminum Leg destroyed. [Achievement: Let's See Who's Tougher] 00655_ The unstable cave ceiling collapses. 00656_ Aluminum Leg destroyed. 00656_ D-53 Grenadier destroyed. 00657_ The unstable cave ceiling collapses. Overweight warning: You are carrying more than your current propulsion can efficiently support, which slows movement; see status page ('s') or the top of the parts list for the specific mass vs. support values. 00660_ Sml. Laser destroyed. 00660_ Destroyed Sml. Laser. Map ----- +----------------------------------------------------+ | ?????????????????????????????????????????????? | | ?????????????????????????????????????????????? | | ?????????????????????????????????????????????? | | ?????????????????????????????????????????????? | | ?????????????????????????????????????????????? | | ?????????????????????????????????????????????? | | ?????????????????????????????????????????????? | | ?????????????????????????????????????????????? | | ?????????????????????????????????????????????? | | ?????????????????????????????????????????????? | | ????????????????????????????????????????????## | | ???????????????????????????????????????????## | | ???????????????????????????????????????????# | | ????????????????????###????????????????????# | | ????????????????????#*!????????????????????## | | ?????????????????####%##???????????????###### | | ????????????????## %!##?????????????## ## | | ????????????????? %* ##???????????## | | ?????????????????# =% ####??????### | | ????????????????## #?????## | | ????????????????# # # #????## | | ????????????????# # #???## ## # | | ????????????????# # #??## ######## # | | ????????????????## # #?## ##?????# # | | ????????????????# d # ### #?????# # | | ????????????????## @ ## ## #?????# # | | ?????????????????####a ### ## #?????# # | | ????????????????????#%###?# ### ##????# # | | ????????????????????#a#???# #?### #????# # | | ????????????????????#a#???# #???## #????# | | ????????????????????#%#???# #????# ##????### | | ????????????????????#a#???# #???## #???????? | | ????????????????????a #???# #???# ##??????? | | ???????????????????? #???# ##### #??????? | | ????????????????????< ????# #??????? | | ???????????????????? ????######## ##??????? | | ???????????????????? ???????????#####???????? | | ???????????????????? ???????????????????????? | | ????????????????????# ???????????????????????? | | ????????????????????? ???????????????????????? | | ?????????????????????#???????????????????????? | | ?????????????????????????????????????????????? | | ?????????????????????????????????????????????? | | ?????????????????????????????????????????????? | | ?????????????????????????????????????????????? | | | | | | | | | | | +----------------------------------------------------+ Best States ------------- Heat Dissipation 35 Energy Generation 10 Energy Capacity 125 Matter Stores 300 Matter Capacity 300 Sight Range 16 Terrain Scan Density 10 Evasion (%) 55 Targeting Accuracy 5 Item Schematics ----------------- None Robot Schematics ------------------ None Fabricated ------------ Nothing Repaired ---------- Nothing Studied --------- None Alien Tech Used ----------------- None Achievements -------------- Ghost 'Em I Have A Map? Let's See Who's Tougher Loot Pinata Challenges ------------ None Game ------ Seed ChainThiefStatue Manual? 0 Play Time 00:19:12 Cumulative 0.2 hours Start 2025.12.25 @ 22:57:55 End 2025.12.25 @ 23:17:04 Sessions 1 Manual Loads 0 Difficulty Rogue Special Mode None Game No. 1 Rogue 1 Adventurer 0 Explorer 0 Win Type - Total 0 Types 0/0/0/0/0/0/0/0/0/0 Lore% 0 Gallery% 0 Achievement% 2 Wizard Run 0 Options --------- Layout 1 ASCII 0 Keyboard 1 Movement Vi Keybinds 0 Fullscreen 1 Font 24/Smallcaps Map View 50x35 Zoom Use 0% Tactical HUD 1 Map Filters NONE Filters NONE Steam 1 RUN: 45aa1803-cfae-49a0-9874-bd9d8b92dfd5